fUSD/lending_fUSD_20250916
["ID","MTS","AMOUNT","RATE_DAILY","PERIOD"]
[385858255,1758063186397,-68.12389798,0.00019785,2]
[385858256,1758063190413,-231.87610202,0.00019785,2]
[385858257,1758063190439,-68.12389798,0.00019785,2]
[385858260,1758063343942,-174.63226174,0.00019708,2]
[385858261,1758063345992,-265.56,0.00019708,2]
[385858262,1758063348967,-214.2212,0.00019708,2]
[385858263,1758063352441,-263.32609514,0.00019708,2]
[385858264,1758063354336,-188.08,0.00019708,2]
[385858265,1758063358665,-347.7699839,0.00019708,2]
[385858266,1758063360483,-250.19,0.00019708,2]
[385858267,1758063365541,-153.49,0.00019708,2]
[385858268,1758063368586,-250.60022156,0.00019708,2]
[385858271,1758063433833,-300.0,0.00019706,2]
[385858272,1758063433856,-266.46994307,0.00019706,2]
[385858273,1758063433932,158.3,0.00019302,2]
[385858274,1758063435993,-33.53005693,0.00019706,2]
[385858275,1758063436016,-340.57817752,0.00019707,2]
[385858276,1758063437525,-15.79700673,0.00019707,2]
[385858277,1758063437548,-172.78117079,0.00019707,2]
[385858278,1758063439941,-220.90493212,0.00019707,2]
[385858279,1758063439978,-45.68729907,0.00019707,2]
[385858280,1758063441436,-278.35953436,0.00019707,2]
[385858281,1758063444398,-151.0,0.00019707,2]
[385858282,1758063519717,666.0,0.00018855,3]
[385858283,1758063559251,-151.0,0.00019697,2]
[385858286,1758063579153,155.91,0.00018859,2]
[385858287,1758063591998,-151.0,0.00019681,2]
[385858288,1758063592019,-74.2863113,0.000197,2]
[385858289,1758063595601,-151.0,0.00019664,2]
[385858290,1758063595629,-161.27988369,0.000197,2]
[385858291,1758063598054,-300.0,0.000197,2]
[385858292,1758063607591,252.11,0.00018863,2]
[385858293,1758063650623,200.0,0.00018852,2]
[385858294,1758063696076,-246.50647201,0.00019601,2]
[385858295,1758063698553,-32.28961699,0.00019601,2]
[385858296,1758063721939,200.0,0.00018856,2]
[385858297,1758063766632,250.0,0.00018857,2]
[385858300,1758063805451,351.04,0.00018785,2]
[385858301,1758063827848,310.73,9.393e-05,2]
[385858302,1758063828074,310.73,9.887e-05,2]
[385858303,1758063828284,310.73,0.00010381,2]
[385858304,1758063828501,310.73,0.00010875,2]
[385858305,1758063828928,310.73,0.0001137,2]
[385858306,1758063829139,310.73,0.00011864,2]
[385858307,1758063829358,310.73,0.00012358,2]
[385858308,1758063830143,310.73,0.00012853,2]
[385858309,1758063830876,310.73,0.00013347,2]
[385858310,1758063830957,310.73,0.00013841,2]
[385858311,1758063831073,310.73,0.00014336,2]
[385858312,1758063831274,240.65436533,0.0001483,2]
[385858313,1758063831302,70.07563467,0.0001483,2]
[385858314,1758063831584,310.73,0.00015324,2]
[385858315,1758063831742,310.73,0.00015819,2]
[385858316,1758063831957,310.73,0.00016313,2]
[385858317,1758063832172,310.73,0.00016807,2]
[385858318,1758063832386,310.73,0.00017302,2]
[385858319,1758063832871,310.73,0.00017796,2]
[385858320,1758063833057,310.73,0.0001829,2]
[385858321,1758063833280,310.73,0.00018785,2]
[385858322,1758063889127,161.38878587,0.00019,2]
[385858323,1758063909509,150.0,0.00018,2]
[385858324,1758063909581,150.0,0.00019,2]
[385858325,1758063913291,150.0,0.00018,2]
[385858326,1758063913328,150.0,0.00019,2]
[385858327,1758063914617,150.0,0.00018,2]
[385858328,1758063916123,150.0,0.00018,2]
[385858329,1758063918734,150.0,0.00018,2]
[385858330,1758063921901,150.0,0.00018,2]
[385858331,1758063922255,150.0,0.00018,2]
[385858332,1758063933640,150.0,0.00018,2]
[385858333,1758063933711,150.0,0.00018,2]
[385858334,1758063933907,150.0,0.00018,2]
[385858335,1758063934429,150.0,0.00018,2]
[385858349,1758064063202,560.97080957,0.00030136,120]
[385858350,1758064102676,478.36,0.00018728,2]
[385858353,1758064173854,150.0,0.00018716,2]
[385858354,1758064190446,313.50323108,0.00018714,2]
[385858355,1758064190474,660.57676892,0.00018714,2]
[385858370,1758064231626,-300.0,0.00019607,2]
[385858372,1758064231635,-1200.0,0.00019607,2]
[385858373,1758064231645,-2566.31136276,0.00019608,2]
[385858374,1758064231669,-87.59742177,0.00019608,2]
[385858375,1758064231679,-637.45096917,0.00019608,2]
[385858376,1758064231692,-2549.53427135,0.00019608,2]
[385858377,1758064231701,-2000.0,0.00019616,3]
[385858378,1758064231710,-150.0,0.00019624,2]
[385858379,1758064231719,-2653.90878452,0.0001964,2]
[385858380,1758064231728,-463.27814899,0.00019641,2]
[385858381,1758064231790,-3627.93305954,0.00019641,2]
[385858382,1758064231799,-2000.0,0.00019642,3]
[385858383,1758064231809,-2000.0,0.00019642,3]
[385858384,1758064231823,-974.08,0.0001965,2]
[385858385,1758064231832,-165.7575207,0.00019668,2]
[385858386,1758064231841,-4091.21120847,0.0001967,2]
[385858387,1758064231850,-1852.25695406,0.00019673,2]
[385858388,1758064231861,-801.65183046,0.00019673,2]
[385858389,1758064231870,-850.0,0.00019695,2]
[385858390,1758064231880,-220.87675075,0.00019696,2]
[385858391,1758064231889,-200.0,0.00019696,2]
[385858392,1758064231898,-200.0,0.00019696,2]
[385858393,1758064231908,-200.0,0.00019696,2]
[385858394,1758064231917,-151.0,0.00019696,2]
[385858395,1758064231926,-151.0,0.00019696,2]
[385858396,1758064231935,-151.0,0.00019696,2]
[385858397,1758064231943,-151.0,0.00019696,2]
[385858398,1758064231953,-151.0,0.00019696,2]
[385858399,1758064231963,-151.0,0.00019696,2]
[385858400,1758064231972,-151.0,0.00019696,2]
[385858401,1758064231981,-151.0,0.00019696,2]
[385858402,1758064231990,-151.0,0.00019696,2]
[385858403,1758064231999,-151.0,0.00019696,2]
[385858404,1758064232008,-151.0,0.00019696,2]
[385858405,1758064232017,-151.0,0.00019696,2]
[385858406,1758064232032,-500.0,0.00019696,2]
[385858407,1758064232041,-2.58392392,0.00019696,2]
[385858408,1758064232053,-148.41607608,0.00019696,2]
[385858409,1758064232062,-500.0,0.00019696,2]
[385858410,1758064232071,-500.0,0.00019696,2]
[385858411,1758064232081,-151.0,0.00019696,2]
[385858412,1758064232090,-500.0,0.00019696,2]
[385858413,1758064232099,-500.0,0.00019696,2]
[385858414,1758064232108,-500.0,0.00019696,2]
[385858415,1758064232117,-500.0,0.00019696,2]
[385858416,1758064232126,-500.0,0.00019696,2]
[385858417,1758064232135,-500.0,0.00019696,2]
[385858418,1758064232144,-343.92583711,0.00019696,2]
[385858419,1758064232154,-759.56,0.00019698,2]
[385858420,1758064232163,-759.56,0.00019698,2]
[385858421,1758064232173,-759.56,0.00019698,2]
[385858422,1758064232182,-759.56,0.00019698,2]
[385858424,1758064232191,-22.93290281,0.00019699,2]
[385858426,1758064232203,-361.12512584,0.00019699,2]
[385858428,1758064232219,-3707.15317982,0.00019699,2]
[385858429,1758064232228,-612.59314127,0.00019699,2]
[385858431,1758064232238,-500.0,0.00019699,2]
[385858432,1758064232246,-500.0,0.00019699,2]
[385858434,1758064232256,-500.0,0.00019699,2]
[385858436,1758064232266,-500.0,0.00019699,2]
[385858438,1758064232275,-500.0,0.00019699,2]
[385858440,1758064232284,-500.0,0.00019699,2]
[385858442,1758064232293,-500.0,0.00019699,2]
[385858444,1758064232302,-542.51161241,0.00019699,2]
[385858446,1758064232311,-500.0,0.00019699,2]
[385858448,1758064232320,-500.0,0.00019699,2]
[385858450,1758064232329,-300.0,0.00019699,2]
[385858452,1758064232338,-151.0,0.000197,2]
[385858453,1758064232347,-312.24483788,0.000197,2]
[385858454,1758064232356,-388.07820852,0.00019705,2]
[385858455,1758064232366,-2653.90878452,0.00019705,2]
[385858456,1758064232374,-1000.0,0.00019707,2]
[385858457,1758064232383,-4591.64765691,0.00019707,2]
[385858458,1758064232394,-22815.71358683,0.00019708,2]
[385858459,1758064232411,-677.05670627,0.00019708,2]
[385858460,1758064232423,-539.16561273,0.00019708,2]
[385858461,1758064232435,-935.66626413,0.00019708,2]
[385858468,1758064238026,-560.27906805,0.00019669,2]
[385858469,1758064238035,-271595.0678671,0.00019708,2]
[385858470,1758064238045,-730.78505913,0.00019708,2]
[385858471,1758064238054,-283.125,0.00019708,2]
[385858472,1758064238063,-150.0,0.00019723,2]
[385858473,1758064238073,-4091.21120847,0.00019727,2]
[385858474,1758064238082,-759.56,0.00019731,2]
[385858475,1758064238092,-2653.90878452,0.00019738,2]
[385858476,1758064238101,-218597.4785177,0.00019741,2]
[385858477,1758064238110,-843.8474205,0.00019741,2]
[385858478,1758064238119,-51951.9883554,0.00019741,2]
[385858479,1758064238129,-1000.0,0.00019753,2]
[385858480,1758064238139,-11079.8185202,0.00019754,2]
[385858481,1758064238148,-49565.6544236,0.00019755,2]
[385858482,1758064238157,-4091.21120847,0.00019756,2]
[385858483,1758064238166,-1000.0,0.0001976,2]
[385858484,1758064238175,-1425.0,0.00019768,2]
[385858485,1758064238185,-2653.90878452,0.0001977,2]
[385858486,1758064238194,-4091.21120847,0.00019785,2]
[385858487,1758064238204,-1425.0,0.00019791,2]
[385858488,1758064238214,-988.03052159,0.00019793,2]
[385858489,1758064238223,-1425.0,0.00019794,2]
[385858490,1758064238232,-2653.90878452,0.00019803,2]
[385858491,1758064238241,-4091.21120847,0.00019814,2]
[385858492,1758064238251,-1425.0,0.00019826,2]
[385858493,1758064238264,-2653.90878452,0.00019835,2]
[385858495,1758064238274,-4091.21120847,0.00019842,2]
[385858497,1758064238284,-1000.0,0.00019843,2]
[385858499,1758064238294,-1000.0,0.00019846,2]
[385858501,1758064238303,-1425.0,0.00019851,2]
[385858503,1758064238313,-1425.0,0.00019853,2]
[385858505,1758064238323,-1425.0,0.00019855,2]
[385858507,1758064238333,-1425.0,0.00019856,2]
[385858509,1758064238342,-1000.0,0.00019858,2]
[385858511,1758064238352,-2653.90878452,0.00019868,2]
[385858513,1758064238361,-4091.21120847,0.00019871,2]
[385858515,1758064238371,-1000.0,0.00019895,2]
[385858517,1758064238380,-331.37875016,0.000199,2]
[385858519,1758064238389,-161.95934976,0.000199,2]
[385858521,1758064238399,-2653.90878452,0.000199,2]
[385858523,1758064238409,-3239.74913998,0.000199,2]
[385858525,1758064238418,-245.33096143,0.000199,2]
[385858527,1758064238429,-168.02993509,0.000199,3]
[385858529,1758064238438,-2012.85189588,0.000199,2]
[385858531,1758064238447,-4091.21120847,0.000199,2]
[385858533,1758064238457,-504.07469792,0.000199,2]
[385858535,1758064238466,-172.06910429,0.000199,2]
[385858537,1758064238475,-1000.0,0.00019904,2]
[385858539,1758064238484,-500.0,0.00019973,2]
[385858541,1758064238494,-266.59223119,0.00019973,2]
[385858543,1758064238503,-1062.9683,0.00019999,2]
[385858545,1758064238513,-1005.8562,0.00019999,2]
[385858547,1758064238522,-3181161.38440263,0.0002,2]
[385858552,1758064239978,-1216.94722828,0.0002,2]
[385858602,1758064241494,-1882.0688174,0.000199,2]
[385858694,1758064242850,-2575.3377773,0.000199,2]
[385858695,1758064242859,-700.33143854,0.0002,2]
[385858696,1758064242932,-1235.87439262,0.0002,2]
[385858697,1758064242944,-716.73120004,0.0002,2]
[385858698,1758064242955,-477.34106381,0.0002,2]
[385858699,1758064243047,-2368.61068733,0.0002,2]
[385858700,1758064243161,-14648.02578273,0.0002,2]
[385858846,1758064245981,-3378.98732571,0.0002,2]
[385858850,1758064295092,-153.27418089,0.000196,2]
[385858851,1758064299233,-189.27147582,0.000196,2]
[385858852,1758064301523,-500.0,0.000196,2]
[385858853,1758064308007,-151.44,0.000196,2]
[385858854,1758064309419,-222.57,0.000196,2]
[385858855,1758064311447,-89.75934329,0.000196,2]
[385858856,1758064311473,-166.96065671,0.000196,2]
[385858857,1758064314946,-9.41434329,0.000196,2]
[385858861,1758064392226,300.0,0.000195,7]
[385858862,1758064396290,-190.64167439,0.000196,7]
[385858863,1758064398870,-241.01852418,0.000196,7]
[385858864,1758064400320,-168.33980143,0.000196,7]
[385858865,1758064468509,-215.1413031,0.00019386,2]
[385858866,1758064471238,250.0,0.00015,2]
[385858867,1758064471751,-400.0,0.00019386,2]
[385858868,1758064472302,300.0,0.00017,2]
[385858869,1758064474769,-151.336502,0.00019386,2]
[385858870,1758064477386,-164.34757401,0.00019386,2]
[385858871,1758064479513,-357.96061402,0.00019386,2]
[385858872,1758064481457,-471.33048422,0.00019386,2]
[385858873,1758064484467,-162.67817003,0.00019386,2]
[385858874,1758064488534,-231.60264429,0.00019386,2]
[385858875,1758064490540,-156.02298125,0.00019386,2]
[385858876,1758064497308,-214.68824987,0.00019386,2]
[385858877,1758064500286,-500.0,0.00019386,2]
[385858878,1758064501406,534.972467,0.00019289,2]
[385858879,1758064502388,-152.0,0.00019386,2]
[385858880,1758064506355,-525.69687512,0.00019386,2]
[385858881,1758064507737,-434.03607954,0.00019386,2]
[385858882,1758064512562,-400.0,0.00019386,2]
[385858883,1758064515308,-400.0,0.00019386,2]
[385858884,1758064517345,-63.15852255,0.00019386,2]
[385858885,1758064517368,-138.39578493,0.00019543,2]
[385858886,1758064519188,1300.0,0.00019289,2]
[385858889,1758064522208,-56.60421507,0.00019543,2]
[385858891,1758064573551,666.0,0.0001897,3]
[385858892,1758064627631,1523.16,0.00018952,2]
[385858893,1758064648906,200.0,0.00018934,2]
[385858894,1758064694414,384.16077656,0.00030137,120]
[385858895,1758064706216,8400.19,0.00018928,2]
[385858896,1758064707919,162.63,0.00018928,2]
[385858899,1758064728750,200.0,0.00018928,2]
[385858900,1758064732633,802.47076408,0.00018919,2]
[385858901,1758064732655,545.60923592,0.00018919,2]
[385858902,1758064747499,153.66,0.00018899,2]
[385858903,1758064748434,153.66,0.00025986,120]
[385858904,1758064748698,153.66,0.00028348,120]
[385858905,1758064762968,540.4,0.00018896,2]
[385858906,1758064780436,250.0,0.00018891,2]
[385858907,1758064806439,-291.39578493,0.00019601,2]
[385858913,1758064865729,5888.0,0.00025,14]
[385858914,1758064867951,5888.0,0.00025,14]
[385858915,1758064870218,1300.94170621,0.00025,14]
[385858918,1758064955132,500.0,0.000194,7]
[385858919,1758064957233,1100.0,0.000195,7]
[385858920,1758064960436,-152.0,0.000196,7]
[385858921,1758064964381,-184.87,0.000196,7]
[385858922,1758064967162,-248.0,0.000196,7]
[385858923,1758064971370,1000.0,0.00018832,2]
[385858924,1758064978341,12510.33076408,0.00018832,2]
[385858925,1758064978364,15000.0,0.00018832,2]
[385858926,1758064978386,15000.0,0.00018832,2]
[385858927,1758064978408,15000.0,0.00018832,2]
[385858928,1758064978429,15000.0,0.00018832,2]
[385858929,1758064978451,15000.0,0.00018832,2]
[385858930,1758064978472,15000.0,0.00018832,2]
[385858931,1758064978494,15000.0,0.00018832,2]
[385858932,1758064978515,11241.75923592,0.00018832,2]
[385858933,1758065032664,3758.24076408,0.00018834,2]
[385858934,1758065032686,11503.15923592,0.00018834,2]
[385858935,1758065051815,420.19,0.00018831,2]
[385858936,1758065075891,5888.0,0.00025,14]
[385858937,1758065078299,2140.0,0.00025,14]
[385858938,1758065078378,212.09,0.00018829,2]
[385858941,1758065109186,150.0,0.00018825,2]
[385858942,1758065114271,150.0,0.00018,2]
[385858943,1758065114312,150.0,0.000184,2]
[385858944,1758065114339,150.0,0.000188,2]
[385858945,1758065114382,150.0,0.000192,4]
[385858946,1758065114492,151.25456477,0.00018,2]
[385858947,1758065114524,150.0,0.00018,2]
[385858948,1758065114556,150.0,0.00018222,2]
[385858949,1758065114633,150.0,0.00018444,2]
[385858950,1758065114705,150.0,0.00018667,2]
[385858951,1758065114737,150.0,0.00018889,2]
[385858952,1758065114773,150.0,0.00019111,2]
[385858953,1758065114814,150.0,0.00019333,4]
[385858954,1758065114923,150.0,0.00018,2]
[385858955,1758065114984,150.0,0.00018222,2]
[385858956,1758065115060,150.0,0.00018444,2]
[385858957,1758065115121,150.0,0.00018667,2]
[385858958,1758065115304,150.0,0.00018889,2]
[385858959,1758065115379,150.0,0.00019333,4]
[385858960,1758065115469,13.30619931,0.00019111,2]
[385858961,1758065115492,136.69380069,0.00019111,2]
[385858962,1758065117438,150.0,0.00018,2]
[385858963,1758065120133,150.0,0.0001825,2]
[385858964,1758065120207,150.0,0.000185,2]
[385858965,1758065120273,150.0,0.00018,2]
[385858966,1758065120341,150.0,0.0001875,2]
[385858967,1758065120374,150.0,0.0001925,4]
[385858968,1758065120411,150.0,0.00019,2]
[385858969,1758065120558,1700.23,0.00018819,2]
[385858970,1758065120947,150.0,0.00018,2]
[385858971,1758065120993,150.0,0.00018364,2]
[385858972,1758065121026,150.0,0.00018182,2]
[385858973,1758065121056,150.0,0.00018545,2]
[385858974,1758065121145,150.0,0.00018727,2]
[385858975,1758065121200,-150.0,0.000195,4]
[385858976,1758065121225,-11.57,0.00019556,4]
[385858977,1758065121253,150.0,0.00018909,2]
[385858978,1758065121292,150.0,0.00019091,2]
[385858979,1758065121339,150.0,0.00019273,4]
[385858980,1758065123334,150.0,0.00018,2]
[385858981,1758065123401,150.0,0.000185,2]
[385858982,1758065123478,150.0,0.00019,2]
[385858983,1758065125782,-150.0,0.00019455,4]
[385858984,1758065125806,-22.38701647,0.000195,4]
[385858985,1758065126179,150.0,0.00018,2]
[385858986,1758065126332,150.0,0.00018,2]
[385858987,1758065129748,150.0,0.00018,2]
[385858988,1758065129987,150.0,0.00018286,2]
[385858989,1758065130033,150.0,0.00018571,2]
[385858990,1758065130067,150.0,0.00018857,2]
[385858991,1758065130193,150.0,0.00019143,2]
[385858992,1758065130267,150.0,0.00018,2]
[385858993,1758065130310,150.0,0.00018667,2]
[385858994,1758065130339,-150.0,0.00019429,4]
[385858995,1758065130363,-39.30172553,0.000195,4]
[385858996,1758065130406,150.0,0.00019333,4]
[385858997,1758065130555,150.0,0.00018,2]
[385858998,1758065134273,150.0,0.00018,2]
[385858999,1758065134333,150.0,0.00018286,2]
[385859000,1758065134375,150.0,0.00018571,2]
[385859001,1758065134426,150.0,0.00018857,2]
[385859002,1758065134500,150.0,0.00019143,2]
[385859003,1758065134826,150.0,0.00018,2]
[385859004,1758065135762,-150.0,0.00019429,4]
[385859005,1758065135787,-69.20940276,0.000195,4]
[385859006,1758065137128,150.0,0.00018,2]
[385859007,1758065137184,150.0,0.00018286,2]
[385859008,1758065137249,150.0,0.00018571,2]
[385859009,1758065137324,150.0,0.00018857,2]
[385859010,1758065137405,150.0,0.00019143,2]
[385859011,1758065138636,-150.0,0.00019429,4]
[385859012,1758065138660,-14.5466,0.000195,4]
[385859013,1758065139958,150.0,0.00018,2]
[385859014,1758065140007,150.0,0.00018333,2]
[385859015,1758065140092,150.0,0.00018667,2]
[385859016,1758065140154,150.0,0.00019,2]
[385859017,1758065140221,150.0,0.00019333,4]
[385859018,1758065140484,150.0,0.00018,2]
[385859019,1758065140516,150.0,0.000184,2]
[385859020,1758065140623,150.0,0.000188,2]
[385859021,1758065140695,150.0,0.000192,4]
[385859022,1758065147022,1002.71521042,0.0001995,15]
[385859023,1758065168125,-155.51,0.00019402,2]
[385859024,1758065170543,-152.0,0.00019451,3]
[385859025,1758065175141,346.17,9.402e-05,2]
[385859026,1758065175585,346.17,9.897e-05,2]
[385859027,1758065175796,346.17,0.00010392,2]
[385859028,1758065179711,155.44,0.00010887,2]
[385859029,1758065179735,190.73,0.00010887,2]
[385859030,1758065180066,346.17,0.00011382,2]
[385859031,1758065180241,346.17,0.00011877,2]
[385859032,1758065180377,346.17,0.00012371,2]
[385859033,1758065180615,346.17,0.00012866,2]
[385859034,1758065180995,346.17,0.00013361,2]
[385859035,1758065181453,346.17,0.00013856,2]
[385859036,1758065181680,346.17,0.00014351,2]
[385859037,1758065181912,346.17,0.00014846,2]
[385859038,1758065182129,610.0,0.00018802,2]
[385859039,1758065182325,346.17,0.0001534,2]
[385859040,1758065182552,346.17,0.00015835,2]
[385859042,1758065185579,152.11,0.0001633,2]
[385859043,1758065185607,194.06,0.0001633,2]
[385859044,1758065186076,318.07619931,0.00016825,2]
[385859045,1758065186102,28.09380069,0.00016825,2]
[385859046,1758065186275,346.17,0.0001732,2]
[385859047,1758065186500,346.17,0.00017815,2]
[385859048,1758065186737,346.17,0.0001831,2]
[385859049,1758065186940,346.17,0.00018804,2]
[385859052,1758065234010,5242.91,0.000188,2]
[385859053,1758065238069,700.0,0.000194,7]
[385859054,1758065240160,1500.0,0.000195,7]
[385859057,1758065260721,1832.73,0.00018787,2]
[385859058,1758065274179,6511.58619931,0.00018,2]
[385859059,1758065274200,15000.0,0.00018,2]
[385859060,1758065274221,394.50117028,0.00018,2]
[385859061,1758065276378,418.0,0.00025,14]
[385859064,1758065288139,1307.33,0.0001878,2]
[385859065,1758065292040,4382.39555811,0.0001439,2]
[385859068,1758065320497,398.32010661,0.00010136,2]
[385859069,1758065324109,2687.4503251,0.0001,2]
[385859070,1758065324228,5830.0028399,0.00015,2]
[385859071,1758065324250,13690.58917585,0.00015,2]
[385859072,1758065330088,1309.41082415,0.00018779,2]
[385859073,1758065330109,2395.30917585,0.00018779,2]
[385859074,1758065331237,500.0,0.00013699,2]
[385859075,1758065332601,5465.82,0.00018782,2]
[385859076,1758065333200,500.0,0.00016101,2]
[385859077,1758065334431,450.0,0.0001637,2]
[385859078,1758065348965,5688.87082415,0.00018784,2]
[385859079,1758065348985,9631.90917585,0.00018784,2]
[385859080,1758065415025,2597.06,0.00018771,2]
[385859081,1758065419879,897.42,0.00018768,2]
[385859084,1758065431785,-217.89443903,0.00019351,2]
[385859085,1758065431795,-99.32559655,0.00019354,2]
[385859086,1758065431877,-95.67440345,0.00019354,2]
[385859087,1758065431887,-300.0,0.00019358,2]
[385859088,1758065431897,-155.0812949,0.00019358,2]
[385859089,1758065431906,-165.51,0.00019364,2]
[385859090,1758065431916,-525.74328535,0.00019427,3]
[385859091,1758065432153,-1474.25671465,0.00019427,3]
[385859092,1758065432162,-250.0,0.00019451,2]
[385859093,1758065432171,-1848.0,0.00019451,3]
[385859094,1758065432181,-4.55525524,0.000195,4]
[385859095,1758065432191,-217.89443903,0.00019526,2]
[385859096,1758065432202,-138.43,0.00019556,4]
[385859097,1758065432211,-150.0,0.00019556,4]
[385859098,1758065432220,-1200.0,0.00019599,2]
[385859099,1758065432229,-150.0,0.000196,4]
[385859100,1758065432239,-150.0,0.000196,4]
[385859101,1758065432248,-2200.0,0.000196,7]
[385859102,1758065432257,-222.41213949,0.000196,2]
[385859103,1758065432266,-150.0,0.00019636,4]
[385859105,1758065432276,-300.0,0.0001965,2]
[385859107,1758065432285,-300.0,0.0001965,2]
[385859109,1758065432295,-600.0,0.00019651,2]
[385859112,1758065432305,-297.22,0.00019651,2]
[385859115,1758065432314,-150.0,0.00019667,4]
[385859118,1758065432323,-840.88470901,0.00019698,2]
[385859121,1758065432335,-359.11529099,0.00019698,2]
[385859122,1758065432344,-3000.0,0.000197,7]
[385859125,1758065432354,-217.89443903,0.000197,2]
[385859126,1758065432363,-151.0,0.000197,2]
[385859128,1758065432372,-150.0,0.00019714,4]
[385859131,1758065432382,-150.0,0.00019714,4]
[385859133,1758065432391,-150.0,0.00019714,4]
[385859136,1758065432401,-1832.73,0.00019726,2]
[385859139,1758065432410,-150.0,0.0001973,2]
[385859141,1758065432419,-150.0,0.00019742,2]
[385859143,1758065432428,-150.0,0.0001975,4]
[385859145,1758065432437,-850.0,0.0001975,2]
[385859147,1758065432445,-488.80779231,0.0001976,2]
[385859149,1758065432455,-500.0,0.0001976,2]
[385859151,1758065432464,-185.14321845,0.0001976,2]
[385859153,1758065432472,-500.0,0.0001976,2]
[385859155,1758065432481,-273.48351777,0.0001976,2]
[385859157,1758065432490,-500.0,0.0001976,2]
[385859159,1758065432499,-500.0,0.0001976,2]
[385859161,1758065432508,-500.0,0.0001976,2]
[385859163,1758065432517,-500.0,0.0001976,2]
[385859165,1758065432526,-500.0,0.0001976,2]
[385859167,1758065432535,-500.0,0.0001976,2]
[385859169,1758065432544,-500.0,0.0001976,2]
[385859171,1758065432553,-500.0,0.0001976,2]
[385859173,1758065432561,-290.77237934,0.0001976,2]
[385859175,1758065432570,-500.0,0.0001976,2]
[385859177,1758065432579,-500.0,0.0001976,2]
[385859179,1758065432588,-500.0,0.0001976,2]
[385859181,1758065432596,-499.99999999,0.0001976,2]
[385859183,1758065432605,-150.0,0.00019778,4]
[385859185,1758065432614,-150.0,0.00019778,4]
[385859187,1758065432623,-200.0,0.00019782,2]
[385859189,1758065432633,-191.70048599,0.00019782,2]
[385859191,1758065432642,-200.0,0.00019782,2]
[385859193,1758065432651,-151.0,0.00019782,2]
[385859195,1758065432660,-151.0,0.00019782,2]
[385859197,1758065432669,-151.0,0.00019782,2]
[385859199,1758065432677,-151.0,0.00019782,2]
[385859201,1758065432686,-151.0,0.00019782,2]
[385859203,1758065432695,-151.0,0.00019782,2]
[385859204,1758065432704,-151.0,0.00019782,2]
[385859206,1758065432713,-151.0,0.00019782,2]
[385859208,1758065432722,-151.0,0.00019782,2]
[385859210,1758065432731,-151.0,0.00019782,2]
[385859212,1758065432741,-151.0,0.00019782,2]
[385859214,1758065432749,-151.0,0.00019782,2]
[385859216,1758065432758,-151.0,0.00019782,2]
[385859218,1758065432767,-151.0,0.00019782,2]
[385859220,1758065432777,-151.0,0.00019782,2]